Cogmind - Beta 14 @@@ ROGUE MODE // 2024.12.26 @ 20:56:34 Player: LightKnight Result: Self-destructed Performance ------------- Evolutions (2) 1000 Regions Visited (4) 800 Robots Destroyed (15) 75 Value Destroyed (366) 366 Prototype IDs (1) 20 Alien Tech Used (0) 0 Bonus (0) 0 TOTAL SCORE: 2261 Bonus ------- None Cogmind --------- Core Integrity 439/550 Matter 253/300 Energy 265/265 System Corruption 0% Temperature Cool (0) Movement Walking (125) Location -8/Materials Parts ------- > --- POWER (1) -------- Reinforced Ion Engine > --- PROPULSION (3) --- Aluminum Leg Titanium Leg > --- UTILITY (5) ------ Improved Heat Sink Small Storage Unit Advanced Targeting Computer > --- WEAPON (2) ------- Light Assault Rifle > --- INVENTORY (8) ---- Ion Engine Medium Matter Pod (100) Trap Scanner Terrain Scanner Improved Terrain Scan Processor Spread Laser Improved Assault Rifle Mining Laser Peak State ------------ > --- POWER ------------ Reinforced Ion Engine > --- PROPULSION ------- Aluminum Leg Aluminum Leg Titanium Leg > --- UTILITY ---------- Heat Sink Small Storage Unit Trap Scanner Experimental Sensor Array Reflective Plating > --- WEAPON ----------- Field Laser Light Assault Rifle > --- INVENTORY -------- Ion Engine Heat Sink Medium Matter Pod Terrain Scanner Improved Terrain Scan Processor Spread Laser Improved Assault Rifle Mining Laser [Rating: 29] Favorites ----------- Power Ion Engine Engine Ion Engine Propulsion Aluminum Leg Leg Aluminum Leg Utility Small Storage Unit Device Heat Sink Storage Small Storage Unit Processor Visual Processing Unit Hackware Hacking Suite Protection Light Armor Plating Weapon Light Assault Rifle Energy Gun EM Pulse Gun Ballistic Gun Light Assault Rifle Special Weapon Mining Laser Build | -11 -10 -9 -9 -8 ------- Run | Yrd Mat Mat Min Mat Slots Evolved 4 | . . 2 . 2 Power . | . . . . . Propulsion 1 | . . . . 1 Utility 3 | . . 2 . 1 Weapon . | . . . . . Parts Attached 31 | 7 1 4 9 10 Power 4 | 1 . . 2 1 Engine 4 | 1 . . 2 1 Core . | . . . . . Reactor . | . . . . . Propulsion 5 | 2 . . . 3 Treads . | . . . . . Leg 5 | 2 . . . 3 Wheel . | . . . . . Hover . | . . . . . Flight . | . . . . . Utility 15 | 2 1 3 4 5 Device 7 | 1 1 . 3 2 Storage 2 | 1 . 1 . . Processor 2 | . . 1 . 1 Hackware 1 | . . . . 1 Protection 3 | . . 1 1 1 Artifact . | . . . . . Weapon 7 | 2 . 1 3 1 Energy Gun 3 | 1 . 1 . 1 Energy Cannon . | . . . . . Ballistic Gun 3 | 1 . . 2 . Ballistic Cannon . | . . . . . Launcher . | . . . . . Special Weapon 1 | . . . 1 . Impact Weapon . | . . . . . Slashing Weapon . | . . . . . Piercing Weapon . | . . . . . Special Melee Weapon . | . . . . . Unidentified Prototypes 1 | . . . 1 . Parts Lost 7 | . . . 2 5 Power . | . . . . . Propulsion 2 | . . . . 2 Utility 3 | . . . 1 2 Weapon 2 | . . . 1 1 Highest Loss Streak 5 | . . . 1 5 To Critical Strikes . | . . . . . Average Slot Usage (%) 96 | . 100 93 99 93 Engine 10 | . 14 11 11 9 Leg 23 | . 28 22 22 24 Device 16 | . 14 11 17 19 Storage 12 | . 14 17 11 9 Processor 4 | . . 7 5 2 Protection 7 | . . 2 9 9 Energy Gun 12 | . 14 12 14 7 Ballistic Gun 7 | . 14 9 4 9 Special Weapon 1 | . . . 2 . Peak Build Rating 29 | 7 7 11 18 29 Average Rating 14 | 4 7 9 14 24 On Entrance 8 | . 7 7 11 18 Naked Turns . | . . . . . Heaviest Build 27 | 14 14 19 21 27 Greatest Support 37 | 20 20 20 20 37 Greatest Overweight (x) 4 | 4 . . 1 1 Average Overweight (x) . | . . . . . Largest Inventory Capacity 8 | 8 8 8 8 8 Average Capacity 7 | 7 8 8 8 8 Most Carried 8 | 2 3 4 8 8 Average Carried 5 | 1 2 3 6 7 Final Capacity 8 | 8 8 8 8 8 Final Carried 8 | 2 3 4 6 8 Class Distribution -------------------- 100% | Mutant Dominant Class ---------------- Mutant | -10/Materials Mutant | -9/Materials Mutant | -9/Mines Mutant | -8/Materials Resources | -11 -10 -9 -9 -8 ----------- Run | Yrd Mat Mat Min Mat Matter Collected 626 | 272 . 159 103 92 Remotely 10 | 10 . . . . Salvage Created 632 | 95 . 267 159 111 Parts 39 | 5 . 16 13 5 Haulers Intercepted . | . . . . . Recyclers Shooed . | . . . . . Parts Field Recycled . | . . . . . Retrieved Matter . | . . . . . Parts Self-Destructed . | . . . . . Prevented . | . . . . . Kills | -11 -10 -9 -9 -8 ------- Run | Yrd Mat Mat Min Mat Combat Hostiles Destroyed 10 | . . 2 6 2 Guns 10 | . . 2 6 2 Classes Destroyed 7 | 1 . 4 2 . Recycler 2 | 1 . 1 . . Operator 1 | . . 1 . . Watcher 2 | . . 2 . . Swarmer 4 | . . . 4 . Grunt 4 | . . 1 1 2 Brawler 1 | . . . 1 . Sentry 1 | . . 1 . . Best Kill Streak 4 | 1 . 3 4 1 Combat Bots Only 4 | . . 1 4 1 Max Kills in Single Turn 1 | 1 . 1 1 1 Gunslinging . | . . . . . Exploded . | . . . . . Melee . | . . . . . Uniques/NPCs Destroyed . | . . . . . Combat | -11 -10 -9 -9 -8 -------- Run | Yrd Mat Mat Min Mat Hostile Shots Fired 143 | . . 23 39 81 Missed 41 | . . 9 14 18 Damage Taken 1152 | . . 225 224 703 Core 168 | . . 40 17 111 Absorbed by Shields . | . . . . . Ignored by Resistances 70 | . . . . 70 Core Remaining (%) 95 | 100 100 . 85 . Volleys Fired 83 | 2 3 17 36 25 Largest 2 | 2 2 2 2 2 Hottest 165 | 60 60 60 165 83 Shots Fired 128 | 4 6 28 56 34 Gun 116 | 4 6 28 44 34 Cannon . | . . . . . Launcher . | . . . . . Special 12 | . . . 12 . Kinetic 49 | 2 3 11 8 25 Thermal 42 | . . . 33 9 Explosive . | . . . . . Electromagnetic 37 | 2 3 17 15 . Robot Hit Streak 14 | 2 1 8 4 14 Robot Miss Streak 4 | 1 3 4 4 1 Penetration Max . | . . . . . Secondary Targets 1 | . . . 1 . Max Gunslinging Chain 1 | . . . 1 . Shots Hit Robots 68 | 2 1 17 20 28 Core Hits 35 | 1 . 9 13 12 Critical Kills . | . . . . . Critical Parts Destroyed . | . . . . . Critical Strikes . | . . . . . Melee Attacks . | . . . . . Impact . | . . . . . Slashing . | . . . . . Piercing . | . . . . . Sneak Attacks . | . . . . . Combat Hostiles . | . . . . . Follow-up Attacks . | . . . . . Damage Inflicted 850 | 21 6 272 217 334 Guns 808 | 21 6 230 217 334 Cannons . | . . . . . Explosions 42 | . . 42 . . Melee . | . . . . . Ramming . | . . . . . Kinetic 259 | 6 6 24 39 184 Thermal 271 | . . 42 79 150 Explosive . | . . . . . Electromagnetic 320 | 15 . 206 99 . Impact . | . . . . . Slashing . | . . . . . Piercing . | . . . . . Highest Corruption 4 | . . 4 4 . Average Corruption 3 | . . 3 4 . Corruption Purged . | . . . . . Corruption Blocked . | . . . . . Effects 20 | . . 6 14 . Message Errors 5 | . . 2 3 . Matter Fused 5 | . . 2 3 . Heat Flow Errors 2 | . . . 2 . Energy Discharges 2 | . . 2 . . Data Loss (minor) 2 | . . . 2 . Data Loss (major) 1 | . . . 1 . Misfires 2 | . . . 2 . Weapon Failures 1 | . . . 1 . Overload Shots . | . . . . . Overflow Damage . | . . . . . Projectiles . | . . . . . Explosions . | . . . . . Melee . | . . . . . Knockbacks . | . . . . . Impact . | . . . . . Kinetic . | . . . . . Secondary . | . . . . . Self-Inflicted Damage 73 | . . 73 . . Shots 2 | . . 2 . . Rammed . | . . . . . Targets Rammed . | . . . . . Kicked . | . . . . . Crushed . | . . . . . Highest Temperature 260 | 20 20 9 254 260 Average Temperature 78 | 15 15 6 50 149 Received Heat Transfer 453 | . . 54 30 369 Effects 2 | . . . . 2 Interference 2 | . . . . 2 Siege Activations . | . . . . . Robots Corrupted . | . . . . . Combat Hostiles . | . . . . . Parts Fried 1 | . . 1 . . Impact Corruptions . | . . . . . Robots Melted . | . . . . . Combat Hostiles . | . . . . . Parts Melted . | . . . . . Heat Transferred 478 | . . 50 95 333 Parts Sabotaged . | . . . . . Parts Stolen . | . . . . . Parts Stripped . | . . . . . Power Chain Reactions 1 | . . 1 . . Alert | -11 -10 -9 -9 -8 ------- Run | Yrd Mat Mat Min Mat Peak Influence 202 | 5 3 125 202 46 Initial 48 | . 3 . 48 1 Average 48 | 1 3 36 86 10 Maximum Alert Level 1 | . . . 1 . Low Security (%) 97 | 100 100 100 94 100 Level 1 2 | . . . 5 . Level 2 . | . . . . . Level 3 . | . . . . . Level 4 . | . . . . . Level 5 . | . . . . . High Security . | . . . . . Max Security . | . . . . . Squads Dispatched 2 | . . . . 2 Investigation 1 | . . . . 1 Extermination . | . . . . . Reinforcement 1 | . . . . 1 Assault . | . . . . . Garrison . | . . . . . Intercept . | . . . . . Searches Triggered . | . . . . . Construction Impeded . | . . . . . Haulers Reinforced . | . . . . . Active Scanning Responses . | . . . . . Cargo Convoy Interrupts . | . . . . . Stealth | -11 -10 -9 -9 -8 --------- Run | Yrd Mat Mat Min Mat Distress Signals 2 | . . 1 . 1 Communications Jammed . | . . . . . Distress Signals . | . . . . . Times Spotted 30 | . 2 11 8 9 Peak Tracking Total 10 | . 2 6 4 10 Tactical Retreats 1 | . . . 1 . Traps | -11 -10 -9 -9 -8 ------- Run | Yrd Mat Mat Min Mat Traps Triggered 3 | . . 2 . 1 Indirectly . | . . . . . Trap Hack Attempts . | . . . . . Triggered . | . . . . . Disarmed . | . . . . . Reprogrammed . | . . . . . Reused . | . . . . . Traps Extracted . | . . . . . Installed . | . . . . . Triggered . | . . . . . Machines | -11 -10 -9 -9 -8 ---------- Run | Yrd Mat Mat Min Mat Machines Disabled 2 | . . 2 . . Max in Single Turn 1 | . . 1 . . Machines Repaired . | . . . . . Machines Dismantled . | . . . . . Machines Sabotaged . | . . . . . Overloaded Fab Kills . | . . . . . Hacking | -11 -10 -9 -9 -8 --------- Run | Yrd Mat Mat Min Mat Machines Accessed . | . . . . . Terminals . | . . . . . Fabricators . | . . . . . Repair Stations . | . . . . . Recycling Units . | . . . . . Scanalyzers . | . . . . . Garrison Access . | . . . . . Total Hacks . | . . . . . Successful . | . . . . . Failed . | . . . . . Catastrophic . | . . . . . Database Lockouts . | . . . . . Manual . | . . . . . Terminals . | . . . . . Fabricators . | . . . . . Repair Stations . | . . . . . Recycling Units . | . . . . . Scanalyzers . | . . . . . Garrison Access . | . . . . . Terminal Hacks . | . . . . . Fabricator Hacks . | . . . . . Repair Station Hacks . | . . . . . Recycling Unit Hacks . | . . . . . Scanalyzer . | . . . . . Garrison Access Hacks . | . . . . . Unauthorized Hacks . | . . . . . Terminals . | . . . . . Fabricators . | . . . . . Repair Stations . | . . . . . Recycling Units . | . . . . . Scanalyzers . | . . . . . Garrison Access . | . . . . . Data Cores Recovered 1 | . . 1 . . Used . | . . . . . Hacking Detections . | . . . . . Full Trace Events . | . . . . . Feedback Events . | . . . . . Feedback Blocked . | . . . . . Robot Schematics Acquired . | . . . . . Robots Built . | . . . . . Authchips . | . . . . . Time . | . . . . . Total Robot Build Rating . | . . . . . Part Schematics Acquired . | . . . . . Parts Built . | . . . . . Authchips . | . . . . . Time . | . . . . . Total Part Build Rating . | . . . . . Parts Repaired . | . . . . . Time . | . . . . . Parts Recycled . | . . . . . Recycled Matter . | . . . . . Retrieved Matter . | . . . . . Retrieved Components . | . . . . . Parts Scanalyzed . | . . . . . Part Schematics Acquired . | . . . . . Parts Damaged . | . . . . . Bothacking | -11 -10 -9 -9 -8 ------------ Run | Yrd Mat Mat Min Mat Used RIF Installer . | . . . . . Robots Hacked . | . . . . . Non-combat . | . . . . . Combat . | . . . . . Robot Hacks Applied . | . . . . . Relay Couplers Released . | . . . . . Fabnet Peak Effective % . | . . . . . Robots Rewired . | . . . . . Allies Hacked . | . . . . . Hacks Repelled . | . . . . . Allies | -11 -10 -9 -9 -8 -------- Run | Yrd Mat Mat Min Mat Total Allies . | . . . . . Largest Group . | . . . . . Highest-Rated Group . | . . . . . Highest-Rated Ally . | . . . . . Total Orders . | . . . . . Ally Attacks . | . . . . . Total Damage . | . . . . . Kills . | . . . . . Allies Corrupted . | . . . . . Allies Melted . | . . . . . Intel | -11 -10 -9 -9 -8 ------- Run | Yrd Mat Mat Min Mat Robot Analysis Total . | . . . . . Derelict Logs Recovered 1 | . . . 1 . Drone Launches . | . . . . . Drone Recoveries . | . . . . . Exploration | -11 -10 -9 -9 -8 ------------- Run | Yrd Mat Mat Min Mat Turns Passed 1333 | 108 116 245 614 250 Spaces Moved 860 | 72 88 159 396 145 Core 22 | 22 . . . . Treads . | . . . . . Legs 838 | 50 88 159 396 145 Wheels . | . . . . . Hover . | . . . . . Flight . | . . . . . Fastest Speed 50 | 50 120 120 120 120 Average Speed 121 | 126 120 120 121 122 Slowest Speed 250 | 250 120 120 190 200 Overloaded Moves . | . . . . . Propulsion Burnouts . | . . . . . Robots Hopped . | . . . . . Cave-ins Triggered . | . . . . . Exploration Rate (%) 26 | 5 19 21 71 16 Regions Visited 4 Branch Regions 1 Pre-discovered Areas . | . . . . . Known Exits Taken . | . . . . . Unknown Exits Taken 4 | 1 1 1 1 . Scrap Searched 2 | . . . 2 . Spaces Dug 6 | . . . 6 . Terrain Destroyed 17 | . . 5 12 . Melee . | . . . . . Projectile 12 | . . . 12 . AOE 5 | . . 5 . . Terrain Rammed . | . . . . . Walls Destroyed . | . . . . . Machines Disabled . | . . . . . Actions | -11 -10 -9 -9 -8 --------- Run | Yrd Mat Mat Min Mat Total 995 | 82 92 186 448 187 Wait 9 | . . 6 3 . Move 856 | 71 87 158 395 145 Hop . | . . . . . Pick Up 8 | 2 1 . 2 3 Fast Attach 15 | 7 . 3 2 3 Attach 3 | . . . 2 1 Detach 4 | . . 1 2 1 Swap 13 | . 1 1 5 6 Drop 4 | . . . 1 3 Fire 83 | 2 3 17 36 25 Melee . | . . . . . Ram . | . . . . . Kick . | . . . . . Crush . | . . . . . Escape Stasis . | . . . . . Rewire . | . . . . . Trap . | . . . . . Miscellaneous . | . . . . . Route ------- -11/Scrapyard -10/Materials -9/Materials -9/Mines -8/Materials (discovered 1 exit: Fac) History --------- Turn | Location | Event 6 | -11/Scrapyard | Discovered new exit (range 14) 109 | -11/Scrapyard | Entered Materials 213 | -10/Materials | Discovered new exit (range 9) 225 | -10/Materials | Entered another Materials area 225 | -9/Materials | Evolved 2 slots: Utility x2 303 | -9/Materials | Build established: Mutant 440 | -9/Materials | Discovered new exit (range 15) 470 | -9/Materials | Entered Mines 511 | -9/Mines | Met a Derelict bent on vengeance 737 | -9/Mines | Learned 4 Materials zone layouts 766 | -9/Mines | Found a damaged Exp. Sensor Array with a note attached 768 | -9/Mines | Found Prototype Device 768 | -9/Mines | Identified Exp. Sensor Array 1064 | -9/Mines | Discovered new exit (range 5) 1084 | -9/Mines | Entered Materials 1084 | -8/Materials | Evolved 2 slots: Propulsion x1, Utility x1 1085 | -8/Materials | Identified exit to Factory 1334 | -8/Materials | Self-destructed Last Messages --------------- reinforcements to Terminal M011. 01292_ K-01 Serf collects debris. 01294_ Aluminum Leg destroyed. 01295_ K-01 Serf collects debris. 01296_ Field Laser destroyed. 01296_ G-47 Trooper destroyed. 01298_ Acquired 47 matter. 01298_ K-01 Serf collects debris. 01304_ Acquired Aluminum Leg. 01306_ Dropped Heat Sink. 01312_ Triggered Alarm Trap. 01312_ An alarm sounds. 01312_ ALERT: Alarm triggered, dispatching investigation squad. 01312_ K-01 Serf cleans the Pressure Siphon. 01314_ Exp. Sensor Array destroyed. 01318_ U-05 Engineer lays Concrete. 01328_ U-05 Engineer destroyed. 01330_ Reflective Plating destroyed. 01333_ K-01 Serf collects debris. Map ----- +----------------------------------------------------+ | ?????????????????????????????????????????????????? | | ?????????????????????????????????????????????????? | | ?????????????????????????????????????????????????? | | ?????????????????????????????????????????????????? | | ?????????????????????????????????????????????????? | | ?????????????????????????????????????????????????? | | ?????????????????????????????????????????????????? | | ?????????????????????????????????????????????????? | | ?????????????????????????????????????????????????? | | ?????????????????????????????????????????????????? | | ?????????????????????????????????????????????????? | | ?????????????????????????????????????????????????? | | ?????????????????????????????????????????????????? | | ??????????????????????##+##??????????????????????? | | ???????????????#??????# ??????????????????????? | | ???????????????# ???# #??????????????????????? | | ??????????????## ?? ##?????????????????????? | | ########??????"" ! ?? "??????????????????????? | | ! = #??????"T """ T"## # ???????????? | | #??????"" ] """ ""##/###### ???????????? | | ######### g """ #### ###??# ???????????? | | ## """ #### ???????????? | | ## o ???????????? | | """ ## #####???????????? | | """ ## #####+##### ##########?????????????? | | """ ## # # @# #?????????????? | | ## #"" # # """""#?????????????? | | ###+##### #"T = # s# * """""#?????????????? | | ?# #"" # sk# """""#?????????????? | | ## + """ # s + """""#?????????????? | | # """ # # """""#?????????????? | | ############# """ #=%*# """""#?????????????? | | #####???????# # | # """""#?????????????? | | #???############+## # #?????????????? | | #???# #?# + ##########?????????????? | | #???# #?# T # #??# #?????????????????? | | #???# #?# + ###########????????????? | | #???# ### !%# # #????????????? | | #???# / + # ts# """ """ #????????????? | | #???#"" # # ! # # """ """ #????????????? | | #???#"T # ######## # """ """ #????????????? | | #???#"" # #??????# + """ """ #????????????? | | #####???# # #??????# # """ """ #????????????? | | #???????????????????# #??????????????????????? | | #??????????????????? #??????????????????????? | | #???????????????????##+##??????????????????????? | | #????????????????????? ????????????????????????? | | #????????????????????? ????????????????????????? | | #????????????????????? ????????????????????????? | | ###??????????????????????????????????????????????? | +----------------------------------------------------+ Best States ------------- Heat Dissipation 45 Energy Generation 12 Energy Capacity 265 Matter Stores 300 Matter Capacity 400 Sight Range 18 Robot Scan Range 20 Terrain Scan Range 14 Terrain Scan Density 10 Armor Coverage 150 Resistance: TH 10 Evasion (%) 55 Targeting Accuracy 8 Offensive Hacking 10 Item Schematics ----------------- None Robot Schematics ------------------ None Fabricated ------------ Nothing Alien Tech Used ----------------- None Achievements -------------- None Challenges ------------ None Game ------ Seed SpliceLaserShield Manual? 0 Play Time 00:16:36 Cumulative 59.9 hours Start 2024.12.26 @ 20:40:24 End 2024.12.26 @ 20:56:34 Sessions 1 Manual Loads 0 Difficulty Rogue Special Mode None Game No. 53 Rogue 53 Adventurer 0 Explorer 0 Win Type - Total 0 Types 0/0/0/0/0/0/0/0/0 Lore% 22 Gallery% 39 Achievement% 27 Wizard Run 0 Options --------- Layout 2 ASCII 0 Keyboard 1 Movement Arrows Keybinds 0 Fullscreen 1 Font 24/Proggy Map View 50x44 Zoom Use 0% Tactical HUD 1 Map Filters NONE Filters NONE Steam 1 RUN: 08e67444-f26c-4024-a5b5-12cdcf77f9b2